{"text_format":"3","workbook":"xlsx","n_sheets":3,"sheets":["Izvješće o mjesečnom proračunu","Mjesečni izdaci","Dodatni podaci"],"not_rendered":{"charts":1,"defined_names":4,"pivot_tables":2},"read":"whole","date_system":"1900"}

{"sheet":"Izvješće o mjesečnom proračunu","index":0,"n_rows":34,"n_cols":13,"rows_kept":34,"merged":[[7,1,10,1],[7,5,10,5],[7,6,10,6],[12,1,16,1],[12,5,16,5],[12,6,16,6]]}
[null,"Pregled proračuna",{"$nulls":7},"Sažetak proračuna"]
[null,"Saldo"]
[null,"Planirani saldo","(Planirano minus izdaci)",{"$nulls":3},{"$f":"D17-SUM(DetaljiProračuna[Planirani trošak])","v":{"v":1585,"d":"1,585 kn"}}]
[null,"Stvarni saldo ","(Stvarno  minus izdaci)",{"$nulls":3},{"$f":"D11-SUM(DetaljiProračuna[Stvarni trošak])","v":{"v":1740,"d":"1,740 kn"}}]
[null,"Razlika","(Stvarno minus planirano)",{"$nulls":3},{"$f":"G4-G3","v":{"v":155,"d":"155 kn"}}]
[]
[null,"Prihod",{"$nulls":3},"Izdaci",{"$nulls":3},"Desnom tipkom miša kliknite zaokretnu tablicu u nastavku pa klikniteOsvježi da biste ažurirali"]
[null,"STVARNO","Prihod 1",{"v":5800,"d":"5,800 kn"},null,"STVARNO",{"$f":"SUM(DetaljiProračuna[Stvarni trošak])","v":{"v":7860,"d":"7,860 kn"}}]
[null,null,"Prihod 2",{"v":2300,"d":"2,300 kn"},{"$nulls":5},"Kategorija","Zbroj od Planirani trošak","Zbroj od Stvarni trošak","Zbroj od Razlika"]
[null,null,"Dodatni prihod",{"v":1500,"d":"1,500 kn"},{"$nulls":5},"Djeca",{"v":140,"d":"140 kn"},{"v":140,"d":"140 kn"},{"v":0,"d":"0 kn"}]
[null,null,"Ukupni prihod",{"$f":"SUM(D8:D10)","v":{"v":9600,"d":"9,600 kn"}}]
[{"$nulls":9},"Zabava",{"v":400,"d":"400 kn"},{"v":358,"d":"358 kn"},{"v":42,"d":"42 kn"}]
[null,"PLANIRANO",{"$nulls":3},"PLANIRANO",{"$f":"SUM(DetaljiProračuna[Planirani trošak])","v":{"v":7915,"d":"7,915 kn"}}]
[null,null,"Prihod 1",{"v":6000,"d":"6,000 kn"},{"$nulls":5},"Hrana",{"v":1100,"d":"1,100 kn"},{"v":1320,"d":"1,320 kn"},{"v":-220,"d":"-220 kn"}]
[null,null,"Prihod 2",{"v":1000,"d":"1,000 kn"}]
[null,null,"Dodatni prihod",{"v":2500,"d":"2,500 kn"},{"$nulls":5},"Darovi i dobrotvorni prilozi",{"v":100,"d":"100 kn"},{"v":125,"d":"125 kn"},{"v":-25,"d":"-25 kn"}]
[null,null,"Ukupni prihod",{"$f":"SUM(D14:D16)","v":{"v":9500,"d":"9,500 kn"}}]
[{"$nulls":9},"Troškovi stanovanja",{"v":2830,"d":"2,830 kn"},{"v":2702,"d":"2,702 kn"},{"v":128,"d":"128 kn"}]
[]
[{"$nulls":9},"Osiguranje",{"v":900,"d":"900 kn"},{"v":900,"d":"900 kn"},{"v":0,"d":"0 kn"}]
[]
[{"$nulls":9},"Krediti",{"v":200,"d":"200 kn"},{"v":200,"d":"200 kn"},{"v":0,"d":"0 kn"}]
[]
[{"$nulls":9},"Osobna njega",{"v":150,"d":"150 kn"},{"v":140,"d":"140 kn"},{"v":10,"d":"10 kn"}]
[]
[{"$nulls":9},"Kućni ljubimci",{"v":170,"d":"170 kn"},{"v":100,"d":"100 kn"},{"v":70,"d":"70 kn"}]
[]
[{"$nulls":9},"Štednja ili ulaganja",{"v":200,"d":"200 kn"},{"v":200,"d":"200 kn"},{"v":0,"d":"0 kn"}]
[]
[{"$nulls":9},"Porez",{"v":300,"d":"300 kn"},{"v":300,"d":"300 kn"},{"v":0,"d":"0 kn"}]
[]
[{"$nulls":9},"Prijevoz",{"v":1425,"d":"1,425 kn"},{"v":1375,"d":"1,375 kn"},{"v":50,"d":"50 kn"}]
[]
[{"$nulls":9},"Ukupni zbroj",{"v":7915,"d":"7,915 kn"},{"v":7860,"d":"7,860 kn"},{"v":55,"d":"55 kn"}]

{"sheet":"Mjesečni izdaci","index":1,"n_rows":62,"n_cols":7,"rows_kept":62}
[null,"Mjesečni izdaci"]
[null,"Opis","Kategorija","Planirani trošak","Stvarni trošak","Razlika","Pregled stvarnog troška"]
[null,"Vannastavne aktivnosti","Djeca",{"v":40,"d":"40 kn"},{"v":40,"d":"40 kn"},{"$f":"DetaljiProračuna[[#This Row],[Planirani trošak]]-DetaljiProračuna[[#This Row],[Stvarni trošak]]","v":{"v":0,"d":"0 kn"}},{"$f":"DetaljiProračuna[[#This Row],[Stvarni trošak]]","v":{"v":40,"d":"$40"}}]
[null,"Medicinske potrepštine","Djeca",null,null,{"$f":"DetaljiProračuna[[#This Row],[Planirani trošak]]-DetaljiProračuna[[#This Row],[Stvarni trošak]]","v":{"v":0,"d":"0 kn"}},{"$f":"DetaljiProračuna[[#This Row],[Stvarni trošak]]","v":{"v":0,"d":"$0"}}]
[null,"Školski pribor","Djeca",null,null,{"$f":"DetaljiProračuna[[#This Row],[Planirani trošak]]-DetaljiProračuna[[#This Row],[Stvarni trošak]]","v":{"v":0,"d":"0 kn"}},{"$f":"DetaljiProračuna[[#This Row],[Stvarni trošak]]","v":{"v":0,"d":"$0"}}]
[null,"Instrukcije","Djeca",{"v":100,"d":"100 kn"},{"v":100,"d":"100 kn"},{"$f":"DetaljiProračuna[[#This Row],[Planirani trošak]]-DetaljiProračuna[[#This Row],[Stvarni trošak]]","v":{"v":0,"d":"0 kn"}},{"$f":"DetaljiProračuna[[#This Row],[Stvarni trošak]]","v":{"v":100,"d":"$100"}}]
[null,"Koncerti","Zabava",{"v":50,"d":"50 kn"},{"v":40,"d":"40 kn"},{"$f":"DetaljiProračuna[[#This Row],[Planirani trošak]]-DetaljiProračuna[[#This Row],[Stvarni trošak]]","v":{"v":10,"d":"10 kn"}},{"$f":"DetaljiProračuna[[#This Row],[Stvarni trošak]]","v":{"v":40,"d":"$40"}}]
[null,"Kazalište","Zabava",{"v":200,"d":"200 kn"},{"v":150,"d":"150 kn"},{"$f":"DetaljiProračuna[[#This Row],[Planirani trošak]]-DetaljiProračuna[[#This Row],[Stvarni trošak]]","v":{"v":50,"d":"50 kn"}},{"$f":"DetaljiProračuna[[#This Row],[Stvarni trošak]]","v":{"v":150,"d":"$150"}}]
[null,"Kino","Zabava",{"v":50,"d":"50 kn"},{"v":28,"d":"28 kn"},{"$f":"DetaljiProračuna[[#This Row],[Planirani trošak]]-DetaljiProračuna[[#This Row],[Stvarni trošak]]","v":{"v":22,"d":"22 kn"}},{"$f":"DetaljiProračuna[[#This Row],[Stvarni trošak]]","v":{"v":28,"d":"$28"}}]
[null,"Glazba (CD-ovi, preuzimanja itd.)","Zabava",{"v":50,"d":"50 kn"},{"v":30,"d":"30 kn"},{"$f":"DetaljiProračuna[[#This Row],[Planirani trošak]]-DetaljiProračuna[[#This Row],[Stvarni trošak]]","v":{"v":20,"d":"20 kn"}},{"$f":"DetaljiProračuna[[#This Row],[Stvarni trošak]]","v":{"v":30,"d":"$30"}}]
[null,"Sportski događaji","Zabava",{"v":0,"d":"0 kn"},{"v":40,"d":"40 kn"},{"$f":"DetaljiProračuna[[#This Row],[Planirani trošak]]-DetaljiProračuna[[#This Row],[Stvarni trošak]]","v":{"v":-40,"d":"-40 kn"}},{"$f":"DetaljiProračuna[[#This Row],[Stvarni trošak]]","v":{"v":40,"d":"$40"}}]
[null,"Video/DVD (kupnja)","Zabava",{"v":20,"d":"20 kn"},{"v":50,"d":"50 kn"},{"$f":"DetaljiProračuna[[#This Row],[Planirani trošak]]-DetaljiProračuna[[#This Row],[Stvarni trošak]]","v":{"v":-30,"d":"-30 kn"}},{"$f":"DetaljiProračuna[[#This Row],[Stvarni trošak]]","v":{"v":50,"d":"$50"}}]
[null,"Video/DVD (najam)","Zabava",{"v":30,"d":"30 kn"},{"v":20,"d":"20 kn"},{"$f":"DetaljiProračuna[[#This Row],[Planirani trošak]]-DetaljiProračuna[[#This Row],[Stvarni trošak]]","v":{"v":10,"d":"10 kn"}},{"$f":"DetaljiProračuna[[#This Row],[Stvarni trošak]]","v":{"v":20,"d":"$20"}}]
[null,"Hrana u restoranima","Hrana",{"v":1000,"d":"1,000 kn"},{"v":1200,"d":"1,200 kn"},{"$f":"DetaljiProračuna[[#This Row],[Planirani trošak]]-DetaljiProračuna[[#This Row],[Stvarni trošak]]","v":{"v":-200,"d":"-200 kn"}},{"$f":"DetaljiProračuna[[#This Row],[Stvarni trošak]]","v":{"v":1200,"d":"$1,200"}}]
[null,"Namirnice","Hrana",{"v":100,"d":"100 kn"},{"v":120,"d":"120 kn"},{"$f":"DetaljiProračuna[[#This Row],[Planirani trošak]]-DetaljiProračuna[[#This Row],[Stvarni trošak]]","v":{"v":-20,"d":"-20 kn"}},{"$f":"DetaljiProračuna[[#This Row],[Stvarni trošak]]","v":{"v":120,"d":"$120"}}]
[null,"Dobrotvorni prilozi 1","Darovi i dobrotvorni prilozi",{"v":75,"d":"75 kn"},{"v":100,"d":"100 kn"},{"$f":"DetaljiProračuna[[#This Row],[Planirani trošak]]-DetaljiProračuna[[#This Row],[Stvarni trošak]]","v":{"v":-25,"d":"-25 kn"}},{"$f":"DetaljiProračuna[[#This Row],[Stvarni trošak]]","v":{"v":100,"d":"$100"}}]
[null,"Dobrotvorni prilozi 2","Darovi i dobrotvorni prilozi",{"v":25,"d":"25 kn"},{"v":25,"d":"25 kn"},{"$f":"DetaljiProračuna[[#This Row],[Planirani trošak]]-DetaljiProračuna[[#This Row],[Stvarni trošak]]","v":{"v":0,"d":"0 kn"}},{"$f":"DetaljiProračuna[[#This Row],[Stvarni trošak]]","v":{"v":25,"d":"$25"}}]
[null,"Dar 1","Darovi i dobrotvorni prilozi",null,null,{"$f":"DetaljiProračuna[[#This Row],[Planirani trošak]]-DetaljiProračuna[[#This Row],[Stvarni trošak]]","v":{"v":0,"d":"0 kn"}},{"$f":"DetaljiProračuna[[#This Row],[Stvarni trošak]]","v":{"v":0,"d":"$0"}}]
[null,"Dar 2","Darovi i dobrotvorni prilozi",null,null,{"$f":"DetaljiProračuna[[#This Row],[Planirani trošak]]-DetaljiProračuna[[#This Row],[Stvarni trošak]]","v":{"v":0,"d":"0 kn"}},{"$f":"DetaljiProračuna[[#This Row],[Stvarni trošak]]","v":{"v":0,"d":"$0"}}]
[null,"Kabelska/satelitska TV","Troškovi stanovanja",{"v":100,"d":"100 kn"},{"v":100,"d":"100 kn"},{"$f":"DetaljiProračuna[[#This Row],[Planirani trošak]]-DetaljiProračuna[[#This Row],[Stvarni trošak]]","v":{"v":0,"d":"0 kn"}},{"$f":"DetaljiProračuna[[#This Row],[Stvarni trošak]]","v":{"v":100,"d":"$100"}}]
[null,"Struja","Troškovi stanovanja",{"v":45,"d":"45 kn"},{"v":50,"d":"50 kn"},{"$f":"DetaljiProračuna[[#This Row],[Planirani trošak]]-DetaljiProračuna[[#This Row],[Stvarni trošak]]","v":{"v":-5,"d":"-5 kn"}},{"$f":"DetaljiProračuna[[#This Row],[Stvarni trošak]]","v":{"v":50,"d":"$50"}}]
[null,"Plin","Troškovi stanovanja",{"v":300,"d":"300 kn"},{"v":400,"d":"400 kn"},{"$f":"DetaljiProračuna[[#This Row],[Planirani trošak]]-DetaljiProračuna[[#This Row],[Stvarni trošak]]","v":{"v":-100,"d":"-100 kn"}},{"$f":"DetaljiProračuna[[#This Row],[Stvarni trošak]]","v":{"v":400,"d":"$400"}}]
[null,"Usluga čišćenja kuće","Troškovi stanovanja",{"v":200,"d":"200 kn"},null,{"$f":"DetaljiProračuna[[#This Row],[Planirani trošak]]-DetaljiProračuna[[#This Row],[Stvarni trošak]]","v":{"v":200,"d":"200 kn"}},{"$f":"DetaljiProračuna[[#This Row],[Stvarni trošak]]","v":{"v":0,"d":"$0"}}]
[null,"Održavanje","Troškovi stanovanja",{"v":200,"d":"200 kn"},{"v":150,"d":"150 kn"},{"$f":"DetaljiProračuna[[#This Row],[Planirani trošak]]-DetaljiProračuna[[#This Row],[Stvarni trošak]]","v":{"v":50,"d":"50 kn"}},{"$f":"DetaljiProračuna[[#This Row],[Stvarni trošak]]","v":{"v":150,"d":"$150"}}]
[null,"Kredit ili najamnina","Troškovi stanovanja",{"v":1700,"d":"1,700 kn"},{"v":1700,"d":"1,700 kn"},{"$f":"DetaljiProračuna[[#This Row],[Planirani trošak]]-DetaljiProračuna[[#This Row],[Stvarni trošak]]","v":{"v":0,"d":"0 kn"}},{"$f":"DetaljiProračuna[[#This Row],[Stvarni trošak]]","v":{"v":1700,"d":"$1,700"}}]
[null,"Prirodni plin / nafta","Troškovi stanovanja",null,null,{"$f":"DetaljiProračuna[[#This Row],[Planirani trošak]]-DetaljiProračuna[[#This Row],[Stvarni trošak]]","v":{"v":0,"d":"0 kn"}},{"$f":"DetaljiProračuna[[#This Row],[Stvarni trošak]]","v":{"v":0,"d":"$0"}}]
[null,"Internetske usluge","Troškovi stanovanja",{"v":100,"d":"100 kn"},{"v":100,"d":"100 kn"},{"$f":"DetaljiProračuna[[#This Row],[Planirani trošak]]-DetaljiProračuna[[#This Row],[Stvarni trošak]]","v":{"v":0,"d":"0 kn"}},{"$f":"DetaljiProračuna[[#This Row],[Stvarni trošak]]","v":{"v":100,"d":"$100"}}]
[null,"Telefon (mobilni)","Troškovi stanovanja",{"v":60,"d":"60 kn"},{"v":60,"d":"60 kn"},{"$f":"DetaljiProračuna[[#This Row],[Planirani trošak]]-DetaljiProračuna[[#This Row],[Stvarni trošak]]","v":{"v":0,"d":"0 kn"}},{"$f":"DetaljiProračuna[[#This Row],[Stvarni trošak]]","v":{"v":60,"d":"$60"}}]
[null,"Telefon (kod kuće)","Troškovi stanovanja",{"v":35,"d":"35 kn"},{"v":39,"d":"39 kn"},{"$f":"DetaljiProračuna[[#This Row],[Planirani trošak]]-DetaljiProračuna[[#This Row],[Stvarni trošak]]","v":{"v":-4,"d":"-4 kn"}},{"$f":"DetaljiProračuna[[#This Row],[Stvarni trošak]]","v":{"v":39,"d":"$39"}}]
[null,"Pribor","Troškovi stanovanja",{"v":40,"d":"40 kn"},{"v":55,"d":"55 kn"},{"$f":"DetaljiProračuna[[#This Row],[Planirani trošak]]-DetaljiProračuna[[#This Row],[Stvarni trošak]]","v":{"v":-15,"d":"-15 kn"}},{"$f":"DetaljiProračuna[[#This Row],[Stvarni trošak]]","v":{"v":55,"d":"$55"}}]
[null,"Odvoz i recikliranje otpada","Troškovi stanovanja",{"v":25,"d":"25 kn"},{"v":22,"d":"22 kn"},{"$f":"DetaljiProračuna[[#This Row],[Planirani trošak]]-DetaljiProračuna[[#This Row],[Stvarni trošak]]","v":{"v":3,"d":"3 kn"}},{"$f":"DetaljiProračuna[[#This Row],[Stvarni trošak]]","v":{"v":22,"d":"$22"}}]
[null,"Voda i odvodnja","Troškovi stanovanja",{"v":25,"d":"25 kn"},{"v":26,"d":"26 kn"},{"$f":"DetaljiProračuna[[#This Row],[Planirani trošak]]-DetaljiProračuna[[#This Row],[Stvarni trošak]]","v":{"v":-1,"d":"-1 kn"}},{"$f":"DetaljiProračuna[[#This Row],[Stvarni trošak]]","v":{"v":26,"d":"$26"}}]
[null,"Zdravstveno","Osiguranje",{"v":400,"d":"400 kn"},{"v":400,"d":"400 kn"},{"$f":"DetaljiProračuna[[#This Row],[Planirani trošak]]-DetaljiProračuna[[#This Row],[Stvarni trošak]]","v":{"v":0,"d":"0 kn"}},{"$f":"DetaljiProračuna[[#This Row],[Stvarni trošak]]","v":{"v":400,"d":"$400"}}]
[null,"Kuća","Osiguranje",{"v":400,"d":"400 kn"},{"v":400,"d":"400 kn"},{"$f":"DetaljiProračuna[[#This Row],[Planirani trošak]]-DetaljiProračuna[[#This Row],[Stvarni trošak]]","v":{"v":0,"d":"0 kn"}},{"$f":"DetaljiProračuna[[#This Row],[Stvarni trošak]]","v":{"v":400,"d":"$400"}}]
[null,"Životno","Osiguranje",{"v":100,"d":"100 kn"},{"v":100,"d":"100 kn"},{"$f":"DetaljiProračuna[[#This Row],[Planirani trošak]]-DetaljiProračuna[[#This Row],[Stvarni trošak]]","v":{"v":0,"d":"0 kn"}},{"$f":"DetaljiProračuna[[#This Row],[Stvarni trošak]]","v":{"v":100,"d":"$100"}}]
[null,"Kreditna kartica 1","Krediti",{"v":200,"d":"200 kn"},{"v":200,"d":"200 kn"},{"$f":"DetaljiProračuna[[#This Row],[Planirani trošak]]-DetaljiProračuna[[#This Row],[Stvarni trošak]]","v":{"v":0,"d":"0 kn"}},{"$f":"DetaljiProračuna[[#This Row],[Stvarni trošak]]","v":{"v":200,"d":"$200"}}]
[null,"Kreditna kartica 2","Krediti",null,null,{"$f":"DetaljiProračuna[[#This Row],[Planirani trošak]]-DetaljiProračuna[[#This Row],[Stvarni trošak]]","v":{"v":0,"d":"0 kn"}},{"$f":"DetaljiProračuna[[#This Row],[Stvarni trošak]]","v":{"v":0,"d":"$0"}}]
[null,"Kreditna kartica 3","Krediti",null,null,{"$f":"DetaljiProračuna[[#This Row],[Planirani trošak]]-DetaljiProračuna[[#This Row],[Stvarni trošak]]","v":{"v":0,"d":"0 kn"}},{"$f":"DetaljiProračuna[[#This Row],[Stvarni trošak]]","v":{"v":0,"d":"$0"}}]
[null,"Osobni","Krediti",null,null,{"$f":"DetaljiProračuna[[#This Row],[Planirani trošak]]-DetaljiProračuna[[#This Row],[Stvarni trošak]]","v":{"v":0,"d":"0 kn"}},{"$f":"DetaljiProračuna[[#This Row],[Stvarni trošak]]","v":{"v":0,"d":"$0"}}]
[null,"Studentski","Krediti",null,null,{"$f":"DetaljiProračuna[[#This Row],[Planirani trošak]]-DetaljiProračuna[[#This Row],[Stvarni trošak]]","v":{"v":0,"d":"0 kn"}},{"$f":"DetaljiProračuna[[#This Row],[Stvarni trošak]]","v":{"v":0,"d":"$0"}}]
[null,"Odjeća","Osobna njega",{"v":150,"d":"150 kn"},{"v":140,"d":"140 kn"},{"$f":"DetaljiProračuna[[#This Row],[Planirani trošak]]-DetaljiProračuna[[#This Row],[Stvarni trošak]]","v":{"v":10,"d":"10 kn"}},{"$f":"DetaljiProračuna[[#This Row],[Stvarni trošak]]","v":{"v":140,"d":"$140"}}]
[null,"Usluge kemijskog čišćenja","Osobna njega",null,null,{"$f":"DetaljiProračuna[[#This Row],[Planirani trošak]]-DetaljiProračuna[[#This Row],[Stvarni trošak]]","v":{"v":0,"d":"0 kn"}},{"$f":"DetaljiProračuna[[#This Row],[Stvarni trošak]]","v":{"v":0,"d":"$0"}}]
[null,"Frizer i manikura","Osobna njega",null,null,{"$f":"DetaljiProračuna[[#This Row],[Planirani trošak]]-DetaljiProračuna[[#This Row],[Stvarni trošak]]","v":{"v":0,"d":"0 kn"}},{"$f":"DetaljiProračuna[[#This Row],[Stvarni trošak]]","v":{"v":0,"d":"$0"}}]
[null,"Fitness centar","Osobna njega",null,null,{"$f":"DetaljiProračuna[[#This Row],[Planirani trošak]]-DetaljiProračuna[[#This Row],[Stvarni trošak]]","v":{"v":0,"d":"0 kn"}},{"$f":"DetaljiProračuna[[#This Row],[Stvarni trošak]]","v":{"v":0,"d":"$0"}}]
[null,"Medicinske potrepštine","Osobna njega",null,null,{"$f":"DetaljiProračuna[[#This Row],[Planirani trošak]]-DetaljiProračuna[[#This Row],[Stvarni trošak]]","v":{"v":0,"d":"0 kn"}},{"$f":"DetaljiProračuna[[#This Row],[Stvarni trošak]]","v":{"v":0,"d":"$0"}}]
[null,"Hrana","Kućni ljubimci",{"v":150,"d":"150 kn"},{"v":75,"d":"75 kn"},{"$f":"DetaljiProračuna[[#This Row],[Planirani trošak]]-DetaljiProračuna[[#This Row],[Stvarni trošak]]","v":{"v":75,"d":"75 kn"}},{"$f":"DetaljiProračuna[[#This Row],[Stvarni trošak]]","v":{"v":75,"d":"$75"}}]
[null,"Njega","Kućni ljubimci",{"v":20,"d":"20 kn"},{"v":25,"d":"25 kn"},{"$f":"DetaljiProračuna[[#This Row],[Planirani trošak]]-DetaljiProračuna[[#This Row],[Stvarni trošak]]","v":{"v":-5,"d":"-5 kn"}},{"$f":"DetaljiProračuna[[#This Row],[Stvarni trošak]]","v":{"v":25,"d":"$25"}}]
[null,"Medicinske potrepštine","Kućni ljubimci",null,null,{"$f":"DetaljiProračuna[[#This Row],[Planirani trošak]]-DetaljiProračuna[[#This Row],[Stvarni trošak]]","v":{"v":0,"d":"0 kn"}},{"$f":"DetaljiProračuna[[#This Row],[Stvarni trošak]]","v":{"v":0,"d":"$0"}}]
[null,"Igračke","Kućni ljubimci",null,null,{"$f":"DetaljiProračuna[[#This Row],[Planirani trošak]]-DetaljiProračuna[[#This Row],[Stvarni trošak]]","v":{"v":0,"d":"0 kn"}},{"$f":"DetaljiProračuna[[#This Row],[Stvarni trošak]]","v":{"v":0,"d":"$0"}}]
[null,"Ulaganja","Štednja ili ulaganja",{"v":200,"d":"200 kn"},{"v":200,"d":"200 kn"},{"$f":"DetaljiProračuna[[#This Row],[Planirani trošak]]-DetaljiProračuna[[#This Row],[Stvarni trošak]]","v":{"v":0,"d":"0 kn"}},{"$f":"DetaljiProračuna[[#This Row],[Stvarni trošak]]","v":{"v":200,"d":"$200"}}]
[null,"Mirovinska štednja","Štednja ili ulaganja",null,null,{"$f":"DetaljiProračuna[[#This Row],[Planirani trošak]]-DetaljiProračuna[[#This Row],[Stvarni trošak]]","v":{"v":0,"d":"0 kn"}},{"$f":"DetaljiProračuna[[#This Row],[Stvarni trošak]]","v":{"v":0,"d":"$0"}}]
[null,"Državni","Porez",{"v":300,"d":"300 kn"},{"v":300,"d":"300 kn"},{"$f":"DetaljiProračuna[[#This Row],[Planirani trošak]]-DetaljiProračuna[[#This Row],[Stvarni trošak]]","v":{"v":0,"d":"0 kn"}},{"$f":"DetaljiProračuna[[#This Row],[Stvarni trošak]]","v":{"v":300,"d":"$300"}}]
[null,"Lokalni","Porez",null,null,{"$f":"DetaljiProračuna[[#This Row],[Planirani trošak]]-DetaljiProračuna[[#This Row],[Stvarni trošak]]","v":{"v":0,"d":"0 kn"}},{"$f":"DetaljiProračuna[[#This Row],[Stvarni trošak]]","v":{"v":0,"d":"$0"}}]
[null,"Županijski","Porez",null,null,{"$f":"DetaljiProračuna[[#This Row],[Planirani trošak]]-DetaljiProračuna[[#This Row],[Stvarni trošak]]","v":{"v":0,"d":"0 kn"}},{"$f":"DetaljiProračuna[[#This Row],[Stvarni trošak]]","v":{"v":0,"d":"$0"}}]
[null,"Cijena prijevoza autobusom/taksijem","Prijevoz",{"v":100,"d":"100 kn"},{"v":150,"d":"150 kn"},{"$f":"DetaljiProračuna[[#This Row],[Planirani trošak]]-DetaljiProračuna[[#This Row],[Stvarni trošak]]","v":{"v":-50,"d":"-50 kn"}},{"$f":"DetaljiProračuna[[#This Row],[Stvarni trošak]]","v":{"v":150,"d":"$150"}}]
[null,"Gorivo","Prijevoz",{"v":450,"d":"450 kn"},{"v":400,"d":"400 kn"},{"$f":"DetaljiProračuna[[#This Row],[Planirani trošak]]-DetaljiProračuna[[#This Row],[Stvarni trošak]]","v":{"v":50,"d":"50 kn"}},{"$f":"DetaljiProračuna[[#This Row],[Stvarni trošak]]","v":{"v":400,"d":"$400"}}]
[null,"Osiguranje","Prijevoz",{"v":300,"d":"300 kn"},{"v":300,"d":"300 kn"},{"$f":"DetaljiProračuna[[#This Row],[Planirani trošak]]-DetaljiProračuna[[#This Row],[Stvarni trošak]]","v":{"v":0,"d":"0 kn"}},{"$f":"DetaljiProračuna[[#This Row],[Stvarni trošak]]","v":{"v":300,"d":"$300"}}]
[null,"Licenciranje ","Prijevoz",{"v":25,"d":"25 kn"},{"v":25,"d":"25 kn"},{"$f":"DetaljiProračuna[[#This Row],[Planirani trošak]]-DetaljiProračuna[[#This Row],[Stvarni trošak]]","v":{"v":0,"d":"0 kn"}},{"$f":"DetaljiProračuna[[#This Row],[Stvarni trošak]]","v":{"v":25,"d":"$25"}}]
[null,"Održavanje","Prijevoz",{"v":100,"d":"100 kn"},{"v":50,"d":"50 kn"},{"$f":"DetaljiProračuna[[#This Row],[Planirani trošak]]-DetaljiProračuna[[#This Row],[Stvarni trošak]]","v":{"v":50,"d":"50 kn"}},{"$f":"DetaljiProračuna[[#This Row],[Stvarni trošak]]","v":{"v":50,"d":"$50"}}]
[null,"Kazne za parkiranje","Prijevoz",null,null,{"$f":"DetaljiProračuna[[#This Row],[Planirani trošak]]-DetaljiProračuna[[#This Row],[Stvarni trošak]]","v":{"v":0,"d":"0 kn"}},{"$f":"DetaljiProračuna[[#This Row],[Stvarni trošak]]","v":{"v":0,"d":"$0"}}]
[null,"Otplata kredita za automobil","Prijevoz",{"v":450,"d":"450 kn"},{"v":450,"d":"450 kn"},{"$f":"DetaljiProračuna[[#This Row],[Planirani trošak]]-DetaljiProračuna[[#This Row],[Stvarni trošak]]","v":{"v":0,"d":"0 kn"}},{"$f":"DetaljiProračuna[[#This Row],[Stvarni trošak]]","v":{"v":450,"d":"$450"}}]
[null,"Ukupno",null,{"$f":"SUBTOTAL(109,DetaljiProračuna[Planirani trošak])","v":{"v":7915,"d":"7,915 kn"}},{"$f":"SUBTOTAL(109,DetaljiProračuna[Stvarni trošak])","v":{"v":7860,"d":"7,860 kn"}},{"$f":"SUBTOTAL(109,DetaljiProračuna[Razlika])","v":{"v":55,"d":"55 kn"}}]

{"sheet":"Dodatni podaci","index":2,"n_rows":15,"n_cols":5,"rows_kept":15}
[null,"Zaokretna tablica grafikona pregleda proračuna",null,null,"Popis s vrijednostima za kategoriju detalja proračuna"]
[null,"Kategorija","Cost",null,"Polje s vrijednostima kategorije proračuna"]
[null,"Djeca",140,null,"Djeca"]
[null,"Zabava",358,null,"Zabava"]
[null,"Hrana",1320,null,"Hrana"]
[null,"Darovi i dobrotvorni prilozi",125,null,"Darovi i dobrotvorni prilozi"]
[null,"Troškovi stanovanja",2702,null,"Troškovi stanovanja"]
[null,"Osiguranje",900,null,"Osiguranje"]
[null,"Krediti",200,null,"Krediti"]
[null,"Osobna njega",140,null,"Osobna njega"]
[null,"Kućni ljubimci",100,null,"Kućni ljubimci"]
[null,"Štednja ili ulaganja",200,null,"Štednja ili ulaganja"]
[null,"Porez",300,null,"Porez"]
[null,"Prijevoz",1375,null,"Prijevoz"]
[null,"Ukupni zbroj",7860]